[Event "European Online Club-ch-F 2021"]
[Site "Online"]
[Date "2021.03.27"]
[Round "8.9"]
[White "Moiseenko, Alexander"]
[Black "Sochacki, Christophe"]
[Result "1-0"]
[ECO "B06"]
[WhiteElo "2620"]
[BlackElo "2477"]
[Annotator "ChessBase"]
[PlyCount "115"]
[EventDate "2021.03.27"]
[EventType "team-tourn"]
[EventCountry "NET"]
[SourceTitle "playchess.com"]
[Source "ChessBase"]
[SourceQuality "1"]
[TimeControl "900+5"]

1. d4 {[%emt 0:00:00]} d6 {[%emt 0:00:26]} 2. e4 {[%emt 0:00:04]} g6 {[%emt 0:00:36]} 3. Nc3 {[%emt 0:00:06]} Bg7 {[%emt 0:00:05]} 4. Be3 {[%emt 0:00:05]} a6 {[%emt 0:00:02]} 5. Qd2 {[%emt 0:00:03]} b5 {[%emt 0:00:02]} 6. Bd3 {[%emt 0:01:06]} Nd7 {[%emt 0:00:07]} 7. a4 {[%emt 0:00:06]} b4 {[%emt 0:00:04]} 8. Nce2 {[%emt 0:00:22]} c5 {[%emt 0:00:06]} 9. c3 {[%emt 0:00:02]} bxc3 {[%emt 0:00:12]} 10. bxc3 {[%emt 0:00:02]} Bb7 {[%emt 0:00:06]} 11. Nf3 {[%emt 0:00:18]} cxd4 {[%emt 0:00:06]} 12. cxd4 {[%emt 0:00:02]} Nc5 {[%emt 0:00:06]} 13. Ng3 {[%emt 0:01:14]} Nxd3+ {[%emt 0:04:12]} 14. Qxd3 {[%emt 0:00:03]} a5 {[%emt 0:00:29]} 15. Qb5+ {[%emt 0:02:36]} Qd7 {[%emt 0:00:02]} 16. Qxd7+ {[%emt 0:00:20]} Kxd7 {[%emt 0:00:02]} 17. Rb1 {[%emt 0:01:27]} Bc6 {[%emt 0:00:35]} 18. Nd2 {[%emt 0:00:04]} d5 {[%emt 0:01:31]} 19. O-O {[%emt 0:01:09]} Nf6 {[%emt 0:01:22]} 20. e5 {[%emt 0:00:04]} Ng4 {[%emt 0:00:08]} 21. Nb3 {[%emt 0:00:04]} Nxe3 {[%emt 0:02:32]} 22. fxe3 {[%emt 0:00:04]} Bh6 {[%emt 0:00:11]} 23. Nc5+ {[%emt 0:00:33]} Kc8 {[%emt 0:00:31]} 24. Kf2 {[%emt 0:00:34]} Rb8 {[%emt 0:00:57]} 25. Ne2 {[%emt 0:00:40]} f6 {[%emt 0:00:11]} 26. e6 {[%emt 0:00:05]} Rxb1 {[%emt 0:00:24]} 27. Rxb1 {[%emt 0:00:04]} Kc7 {[%emt 0:00:01]} 28. Nc3 {[%emt 0:00:08]} Ra8 {[%emt 0:00:08]} 29. Nb5+ {[%emt 0:00:24]} Kd8 {[%emt 0:00:27]} 30. Nc3 {[%emt 0:00:21]} Kc7 {[%emt 0:00:02]} 31. Ke2 {[%emt 0:00:01]} f5 {[%emt 0:00:02]} 32. Nb5+ {[%emt 0:00:20]} Kd8 {[%emt 0:00:02]} 33. g3 {[%emt 0:00:17]} Bg7 {[%emt 0:00:02]} 34. Nc3 {[%emt 0:00:20]} Kc7 {[%emt 0:00:02]} 35. Kd2 {[%emt 0:00:07]} h5 {[%emt 0:00:02]} 36. h4 {[%emt 0:00:05]} Bf6 {[%emt 0:00:22]} 37. Nb5+ {[%emt 0:00:01]} Kd8 {[%emt 0:00:17]} 38. Nd3 {[%emt 0:00:04]} Ra6 {[%emt 0:00:47]} 39. Nf4 {[%emt 0:00:06]} g5 {[%emt 0:00:01]} 40. Nxh5 {[%emt 0:00:09]} gxh4 {[%emt 0:00:25]} 41. Nxf6 {[%emt 0:00:03]} exf6 {[%emt 0:00:10]} 42. gxh4 {[%emt 0:00:02]} Ke7 {[%emt 0:00:09]} 43. Nc3 {[%emt 0:00:24]} Kxe6 {[%emt 0:00:16]} 44. h5 {[%emt 0:00:09]} f4 {[%emt 0:00:06]} 45. exf4 {[%emt 0:00:05]} Ra8 {[%emt 0:00:13]} 46. Rb6 {[%emt 0:00:09]} Kd7 {[%emt 0:00:01]} 47. Nb5 {[%emt 0:01:06]} Rh8 {[%emt 0:00:03]} 48. Ra6 {[%emt 0:00:07]} Rxh5 {[%emt 0:00:03]} 49. Rxa5 {[%emt 0:00:07]} Rh4 {[%emt 0:00:06]} 50. Ra7+ {[%emt 0:00:05]} Ke6 {[%emt 0:00:08]} 51. Ra6 {[%emt 0:00:40]} Kd7 {[%emt 0:00:01]} 52. Na7 {[%emt 0:00:02]} Bb7 {[%emt 0:00:11]} 53. Rxf6 {[%emt 0:00:02]} Ke7 {[%emt 0:00:00]} 54. Rb6 {[%emt 0:00:05]} Ba8 {[%emt 0:00:05]} 55. Rb8 {[%emt 0:00:05]} Rxf4 {[%emt 0:00:02]} 56. Ke3 {[%emt 0:00:06]} Rf8 {[%emt 0:00:14]} 57. Nc8+ {[%emt 0:00:05]} Kd7 {[%emt 0:00:07]} 58. Nb6+ {[%emt 0:00:06]} 1-0

[Event "European Online Club-ch-F 2021"]
[Site "Online"]
[Date "2021.03.27"]
[Round "8.10"]
[White "Maatoug, Redwan"]
[Black "Fridman, Daniel"]
[Result "0-1"]
[ECO "B12"]
[WhiteElo "2202"]
[BlackElo "2601"]
[Annotator "ChessBase"]
[PlyCount "142"]
[EventDate "2021.03.27"]
[EventType "team-tourn"]
[EventCountry "NET"]
[SourceTitle "playchess.com"]
[Source "ChessBase"]
[SourceQuality "1"]
[TimeControl "900+5"]

1. e4 {[%emt 0:00:00]} c6 {[%emt 0:00:08]} 2. f4 {[%emt 0:00:11]} d5 {[%emt 0:00:04]} 3. e5 {[%emt 0:00:02]} h5 {[%emt 0:00:13]} 4. Nf3 {[%emt 0:00:08]} Nh6 {[%emt 0:00:02]} 5. d4 {[%emt 0:01:20]} g6 {[%emt 0:00:04]} 6. Bd3 {[%emt 0:00:04]} Bf5 {[%emt 0:00:09]} 7. Bxf5 {[%emt 0:01:11]} Nxf5 {[%emt 0:00:00]} 8. e6 {[%emt 0:00:01]} f6 {[%emt 0:00:02]} 9. O-O {[%emt 0:00:12]} Qd6 {[%emt 0:00:02]} 10. c4 {[%emt 0:00:14]} Qxe6 {[%emt 0:00:17]} 11. Nc3 {[%emt 0:01:13]} Qd7 {[%emt 0:00:12]} 12. Qb3 {[%emt 0:02:27]} e6 {[%emt 0:00:04]} 13. Re1 {[%emt 0:00:04]} Kf7 {[%emt 0:00:02]} 14. Be3 {[%emt 0:00:13]} Na6 {[%emt 0:01:04]} 15. Bf2 {[%emt 0:00:05]} Bd6 {[%emt 0:00:48]} 16. g3 {[%emt 0:00:14]} Rab8 {[%emt 0:00:09]} 17. Re2 {[%emt 0:00:17]} b5 {[%emt 0:00:24]} 18. cxb5 {[%emt 0:00:38]} cxb5 {[%emt 0:00:07]} 19. Rae1 {[%emt 0:00:02]} Nc7 {[%emt 0:00:07]} 20. Kg2 {[%emt 0:00:27]} a5 {[%emt 0:04:23]} 21. h3 {[%emt 0:01:11]} Ne7 {[%emt 0:01:44]} 22. Nd1 {[%emt 0:00:48]} a4 {[%emt 0:00:17]} 23. Qe3 {[%emt 0:00:05]} Bb4 {[%emt 0:00:19]} 24. Rf1 {[%emt 0:00:04]} Nf5 {[%emt 0:00:02]} 25. Qd3 {[%emt 0:00:02]} Nd6 {[%emt 0:00:14]} 26. Bg1 {[%emt 0:00:06]} Ne4 {[%emt 0:00:15]} 27. Nf2 {[%emt 0:00:03]} Nxf2 {[%emt 0:00:07]} 28. Rexf2 {[%emt 0:00:06]} Bd6 {[%emt 0:00:16]} 29. Ne5+ {[%emt 0:01:00]} Bxe5 {[%emt 0:00:02]} 30. fxe5 {[%emt 0:00:01]} f5 {[%emt 0:00:02]} 31. Rc2 {[%emt 0:00:25]} Na6 {[%emt 0:00:08]} 32. Rfc1 {[%emt 0:00:13]} Rb7 {[%emt 0:00:15]} 33. a3 {[%emt 0:00:08]} Rc7 {[%emt 0:01:24]} 34. Rxc7 {[%emt 0:00:56]} Nxc7 {[%emt 0:00:00]} 35. Qc3 {[%emt 0:00:05]} Na8 {[%emt 0:00:15]} 36. Qc5 {[%emt 0:00:20]} Rb8 {[%emt 0:00:06]} 37. Be3 {[%emt 0:00:25]} Nb6 {[%emt 0:00:06]} 38. Qc7 {[%emt 0:00:33]} Rb7 {[%emt 0:00:06]} 39. Qxd7+ {[%emt 0:00:24]} Rxd7 {[%emt 0:00:04]} 40. Rc5 {[%emt 0:00:42]} Nc4 {[%emt 0:00:04]} 41. Bc1 {[%emt 0:00:03]} Rb7 {[%emt 0:00:03]} 42. Rc8 {[%emt 0:00:04]} b4 {[%emt 0:00:17]} 43. Rh8 {[%emt 0:00:34]} Kg7 {[%emt 0:00:07]} 44. Ra8 {[%emt 0:00:02]} Nb6 {[%emt 0:01:39]} 45. Ra6 {[%emt 0:00:29]} b3 {[%emt 0:00:16]} 46. Bd2 {[%emt 0:00:18]} Kf7 {[%emt 0:00:03]} 47. Kf2 {[%emt 0:00:18]} Ke7 {[%emt 0:00:23]} 48. Ba5 {[%emt 0:00:08]} Nc4 {[%emt 0:00:03]} 49. Bc3 {[%emt 0:00:01]} Nxa3 {[%emt 0:00:18]} 50. bxa3 {[%emt 0:00:15]} b2 {[%emt 0:00:02]} 51. Bxb2 {[%emt 0:00:02]} Rxb2+ {[%emt 0:00:02]} 52. Kf3 {[%emt 0:00:06]} Rb3+ {[%emt 0:00:04]} 53. Kf4 {[%emt 0:00:01]} g5+ {[%emt 0:00:21]} 54. Kxg5 {[%emt 0:00:04]} Rxg3+ {[%emt 0:00:00]} 55. Kxh5 {[%emt 0:00:04]} Rxh3+ {[%emt 0:00:02]} 56. Kg5 {[%emt 0:00:02]} Rg3+ {[%emt 0:00:00]} 57. Kf4 {[%emt 0:00:05]} Rxa3 {[%emt 0:00:00]} 58. Ra7+ {[%emt 0:00:02]} Kd8 {[%emt 0:00:17]} 59. Kg5 {[%emt 0:00:01]} Kc8 {[%emt 0:00:38]} 60. Kf6 {[%emt 0:00:21]} f4 {[%emt 0:00:02]} 61. Kxe6 {[%emt 0:00:03]} f3 {[%emt 0:00:01]} 62. Kxd5 {[%emt 0:00:05]} f2 {[%emt 0:00:14]} 63. Rf7 {[%emt 0:00:02]} Ra2 {[%emt 0:00:01]} 64. e6 {[%emt 0:00:01]} Re2 {[%emt 0:00:05]} 65. Kd6 {[%emt 0:00:07]} a3 {[%emt 0:00:02]} 66. e7 {[%emt 0:00:15]} a2 {[%emt 0:00:30]} 67. Rxf2 {[%emt 0:00:02]} a1=Q {[%emt 0:00:04]} 68. Rxe2 {[%emt 0:00:01]} Qxd4+ {[%emt 0:00:02]} 69. Ke6 {[%emt 0:00:16]} Qc4+ {[%emt 0:00:00]} 70. Kf6 {[%emt 0:00:03]} Qxe2 {[%emt 0:00:01]} 71. Kf7 {[%emt 0:00:01]} Kd7 {[%emt 0:00:02]} 0-1

[Event "European Online Club-ch-F 2021"]
[Site "Online"]
[Date "2021.03.27"]
[Round "8.13"]
[White "Kovalev, Vladislav"]
[Black "Hellers, Ferdinand"]
[Result "1-0"]
[ECO "B04"]
[WhiteElo "2648"]
[BlackElo "2592"]
[Annotator "ChessBase"]
[PlyCount "87"]
[EventDate "2021.03.27"]
[EventType "team-tourn"]
[EventCountry "NET"]
[SourceTitle "playchess.com"]
[Source "ChessBase"]
[SourceQuality "1"]
[TimeControl "900+5"]

1. e4 {[%emt 0:00:00]} Nf6 {[%emt 0:00:08]} 2. e5 {[%emt 0:00:02]} Nd5 {[%emt 0:00:02]} 3. d4 {[%emt 0:00:01]} d6 {[%emt 0:00:02]} 4. Nf3 {[%emt 0:00:00]} g6 {[%emt 0:00:02]} 5. Bc4 {[%emt 0:00:05]} Nb6 {[%emt 0:00:02]} 6. Bb3 {[%emt 0:00:01]} Bg7 {[%emt 0:00:02]} 7. Ng5 {[%emt 0:01:30]} e6 {[%emt 0:00:03]} 8. Qf3 {[%emt 0:00:01]} Qe7 {[%emt 0:00:04]} 9. Ne4 {[%emt 0:00:06]} dxe5 {[%emt 0:00:07]} 10. Bg5 {[%emt 0:00:05]} Qb4+ {[%emt 0:00:02]} 11. c3 {[%emt 0:00:02]} Qa5 {[%emt 0:00:03]} 12. Bf6 {[%emt 0:00:15]} O-O {[%emt 0:00:13]} 13. Bxg7 {[%emt 0:00:01]} Kxg7 {[%emt 0:00:02]} 14. Qf6+ {[%emt 0:00:01]} Kg8 {[%emt 0:00:02]} 15. Qxe5 {[%emt 0:00:00]} Qxe5 {[%emt 0:00:03]} 16. dxe5 {[%emt 0:00:00]} a5 {[%emt 0:00:18]} 17. a4 {[%emt 0:00:48]} N8d7 {[%emt 0:01:09]} 18. f4 {[%emt 0:00:04]} Nd5 {[%emt 0:00:03]} 19. g3 {[%emt 0:00:55]} b6 {[%emt 0:00:23]} 20. Nbd2 {[%emt 0:00:05]} Bb7 {[%emt 0:00:02]} 21. O-O-O {[%emt 0:01:26]} Rad8 {[%emt 0:01:35]} 22. Rhe1 {[%emt 0:00:05]} Kg7 {[%emt 0:03:15]} 23. Nf3 {[%emt 0:00:11]} h6 {[%emt 0:02:46]} 24. Rd2 {[%emt 0:00:05]} Nc5 {[%emt 0:00:20]} 25. Bc2 {[%emt 0:01:37]} Ne7 {[%emt 0:00:21]} 26. Nxc5 {[%emt 0:02:39]} Bxf3 {[%emt 0:00:07]} 27. Nd7 {[%emt 0:00:53]} Rh8 {[%emt 0:00:12]} 28. Nf6 {[%emt 0:00:01]} Rxd2 {[%emt 0:00:35]} 29. Kxd2 {[%emt 0:00:00]} Rd8+ {[%emt 0:00:02]} 30. Ke3 {[%emt 0:00:10]} Bc6 {[%emt 0:00:27]} 31. g4 {[%emt 0:01:04]} Nd5+ {[%emt 0:01:39]} 32. Nxd5 {[%emt 0:00:02]} Bxd5 {[%emt 0:00:11]} 33. Rd1 {[%emt 0:00:05]} Rg8 {[%emt 0:01:09]} 34. Be4 {[%emt 0:01:10]} c6 {[%emt 0:00:13]} 35. Rd4 {[%emt 0:02:15]} c5 {[%emt 0:01:17]} 36. Rd2 {[%emt 0:00:04]} Bb3 {[%emt 0:00:01]} 37. Rd6 {[%emt 0:00:03]} Rb8 {[%emt 0:00:06]} 38. Bc6 {[%emt 0:00:01]} Bc4 {[%emt 0:00:02]} 39. h4 {[%emt 0:00:18]} b5 {[%emt 0:00:13]} 40. b3 {[%emt 0:01:06]} Bxb3 {[%emt 0:00:44]} 41. Bxb5 {[%emt 0:00:02]} g5 {[%emt 0:00:08]} 42. fxg5 {[%emt 0:00:03]} hxg5 {[%emt 0:00:02]} 43. h5 {[%emt 0:00:00]} f6 {[%emt 0:00:05]} 44. Rd7+ {[%emt 0:00:06]} 1-0

[Event "European Online Club-ch-F 2021"]
[Site "Online"]
[Date "2021.03.27"]
[Round "8.14"]
[White "Rogule, Laura"]
[Black "Azarov, Sergei"]
[Result "0-1"]
[ECO "E03"]
[WhiteElo "2286"]
[BlackElo "2604"]
[Annotator "ChessBase"]
[PlyCount "68"]
[EventDate "2021.03.27"]
[EventType "team-tourn"]
[EventCountry "NET"]
[SourceTitle "playchess.com"]
[Source "ChessBase"]
[SourceQuality "1"]
[TimeControl "900+5"]

1. d4 {[%emt 0:00:00]} Nf6 {[%emt 0:00:04]} 2. c4 {[%emt 0:00:05]} e6 {[%emt 0:00:02]} 3. g3 {[%emt 0:00:20]} d5 {[%emt 0:00:03]} 4. Bg2 {[%emt 0:00:30]} dxc4 {[%emt 0:00:11]} 5. Qa4+ {[%emt 0:01:25]} Nbd7 {[%emt 0:00:07]} 6. Nf3 {[%emt 0:00:50]} a6 {[%emt 0:00:21]} 7. Qxc4 {[%emt 0:00:11]} c5 {[%emt 0:00:19]} 8. dxc5 {[%emt 0:01:47]} Bxc5 {[%emt 0:00:06]} 9. b4 {[%emt 0:01:29]} Be7 {[%emt 0:00:39]} 10. O-O {[%emt 0:01:13]} b5 {[%emt 0:00:16]} 11. Qb3 {[%emt 0:00:10]} Bb7 {[%emt 0:00:03]} 12. Nc3 {[%emt 0:00:54]} O-O {[%emt 0:00:07]} 13. a4 {[%emt 0:00:30]} Nd5 {[%emt 0:01:13]} 14. Bb2 {[%emt 0:01:34]} bxa4 {[%emt 0:00:35]} 15. Nxa4 {[%emt 0:00:49]} Rb8 {[%emt 0:00:30]} 16. Rfd1 {[%emt 0:01:29]} Ba8 {[%emt 0:01:48]} 17. e4 {[%emt 0:00:11]} Nxb4 {[%emt 0:01:00]} 18. Ne5 {[%emt 0:00:30]} Nc6 {[%emt 0:00:21]} 19. Nxc6 {[%emt 0:00:35]} Rxb3 {[%emt 0:00:04]} 20. Nxd8 {[%emt 0:00:18]} Rxd8 {[%emt 0:00:01]} 21. Bc3 {[%emt 0:00:31]} Bc6 {[%emt 0:01:03]} 22. Ba5 {[%emt 0:00:18]} Rdb8 {[%emt 0:00:13]} 23. e5 {[%emt 0:00:41]} Bxg2 {[%emt 0:01:20]} 24. Kxg2 {[%emt 0:00:03]} R8b7 {[%emt 0:00:11]} 25. Rac1 {[%emt 0:00:13]} h5 {[%emt 0:00:31]} 26. Bc7 {[%emt 0:00:16]} Nf8 {[%emt 0:00:19]} 27. Nc5 {[%emt 0:00:05]} Bxc5 {[%emt 0:00:18]} 28. Rxc5 {[%emt 0:00:01]} Ng6 {[%emt 0:00:23]} 29. Rd8+ {[%emt 0:00:10]} Kh7 {[%emt 0:00:02]} 30. Rd7 {[%emt 0:00:04]} R3b5 {[%emt 0:00:16]} 31. Rxb5 {[%emt 0:00:09]} axb5 {[%emt 0:00:03]} 32. Rxf7 {[%emt 0:00:08]} Nxe5 {[%emt 0:00:37]} 33. Re7 {[%emt 0:00:09]} Nc6 {[%emt 0:00:14]} 34. Rd7 {[%emt 0:00:04]} b4 {[%emt 0:00:09]} 0-1

[Event "European Online Club-ch-F 2021"]
[Site "Online"]
[Date "2021.03.27"]
[Round "8.15"]
[White "Zhigalko, Andrey"]
[Black "Moreau, Teodor"]
[Result "1-0"]
[ECO "B33"]
[WhiteElo "2517"]
[BlackElo "2329"]
[Annotator "ChessBase"]
[PlyCount "63"]
[EventDate "2021.03.27"]
[EventType "team-tourn"]
[EventCountry "NET"]
[SourceTitle "playchess.com"]
[Source "ChessBase"]
[SourceQuality "1"]
[TimeControl "900+5"]

1. e4 {[%emt 0:00:00]} c5 {[%emt 0:00:08]} 2. Nf3 {[%emt 0:00:02]} Nc6 {[%emt 0:00:05]} 3. d4 {[%emt 0:00:03]} cxd4 {[%emt 0:00:03]} 4. Nxd4 {[%emt 0:00:00]} Nf6 {[%emt 0:00:02]} 5. Nc3 {[%emt 0:00:03]} e5 {[%emt 0:00:05]} 6. Ndb5 {[%emt 0:00:02]} d6 {[%emt 0:00:05]} 7. Bg5 {[%emt 0:00:02]} a6 {[%emt 0:00:03]} 8. Na3 {[%emt 0:00:02]} b5 {[%emt 0:00:02]} 9. Bxf6 {[%emt 0:00:02]} gxf6 {[%emt 0:00:03]} 10. Nd5 {[%emt 0:00:01]} Bg7 {[%emt 0:00:05]} 11. c3 {[%emt 0:00:01]} f5 {[%emt 0:00:10]} 12. exf5 {[%emt 0:00:00]} Bxf5 {[%emt 0:00:05]} 13. Nc2 {[%emt 0:00:01]} O-O {[%emt 0:00:12]} 14. Nce3 {[%emt 0:00:03]} Be6 {[%emt 0:00:03]} 15. Bd3 {[%emt 0:00:04]} f5 {[%emt 0:00:04]} 16. O-O {[%emt 0:00:03]} Kh8 {[%emt 0:02:15]} 17. Qh5 {[%emt 0:00:48]} e4 {[%emt 0:01:13]} 18. Bc2 {[%emt 0:00:13]} Ne7 {[%emt 0:00:08]} 19. Rad1 {[%emt 0:00:06]} Nxd5 {[%emt 0:00:12]} 20. Nxd5 {[%emt 0:00:00]} Be5 {[%emt 0:00:28]} 21. f4 {[%emt 0:00:27]} exf3 {[%emt 0:01:18]} 22. Rxf3 {[%emt 0:05:09]} Qd7 {[%emt 0:00:06]} 23. Nf4 {[%emt 0:01:46]} Qf7 {[%emt 0:02:43]} 24. Qh6 {[%emt 0:03:04]} Bd7 {[%emt 0:00:31]} 25. Rh3 {[%emt 0:00:56]} Be8 {[%emt 0:02:48]} 26. Ng6+ {[%emt 0:00:11]} Qxg6 {[%emt 0:00:17]} 27. Qxf8+ {[%emt 0:00:03]} Qg8 {[%emt 0:00:03]} 28. Qxf5 {[%emt 0:01:34]} Ra7 {[%emt 0:00:11]} 29. Bb3 {[%emt 0:00:18]} Qg7 {[%emt 0:01:29]} 30. Rxh7+ {[%emt 0:00:13]} Qxh7 {[%emt 0:00:44]} 31. Qf8+ {[%emt 0:00:00]} Qg8 {[%emt 0:00:02]} 32. Qxg8# {[%emt 0:00:02]} 1-0

[Event "European Online Club-ch-F 2021"]
[Site "Online"]
[Date "2021.03.27"]
[Round "8.16"]
[White "Cramling, Dan"]
[Black "Kazakouski, Valery"]
[Result "0-1"]
[ECO "E45"]
[WhiteElo "2292"]
[BlackElo "2476"]
[Annotator "ChessBase"]
[PlyCount "80"]
[EventDate "2021.03.27"]
[EventType "team-tourn"]
[EventCountry "NET"]
[SourceTitle "playchess.com"]
[Source "ChessBase"]
[SourceQuality "1"]
[TimeControl "900+5"]

1. d4 {[%emt 0:00:00]} Nf6 {[%emt 0:00:02]} 2. c4 {[%emt 0:00:04]} e6 {[%emt 0:00:02]} 3. Nc3 {[%emt 0:00:03]} Bb4 {[%emt 0:00:02]} 4. e3 {[%emt 0:00:04]} b6 {[%emt 0:00:02]} 5. Nge2 {[%emt 0:00:03]} Ba6 {[%emt 0:00:01]} 6. Ng3 {[%emt 0:00:03]} Bxc3+ {[%emt 0:00:04]} 7. bxc3 {[%emt 0:00:03]} d5 {[%emt 0:00:01]} 8. Qf3 {[%emt 0:00:24]} O-O {[%emt 0:00:12]} 9. cxd5 {[%emt 0:01:47]} exd5 {[%emt 0:00:47]} 10. Bxa6 {[%emt 0:00:41]} Nxa6 {[%emt 0:00:00]} 11. O-O {[%emt 0:00:14]} c5 {[%emt 0:00:04]} 12. a4 {[%emt 0:02:01]} Re8 {[%emt 0:00:30]} 13. Ba3 {[%emt 0:00:36]} Qd7 {[%emt 0:00:35]} 14. Rfb1 {[%emt 0:00:52]} Rac8 {[%emt 0:01:23]} 15. Qe2 {[%emt 0:00:29]} c4 {[%emt 0:01:57]} 16. Qc2 {[%emt 0:00:57]} Re6 {[%emt 0:00:16]} 17. Re1 {[%emt 0:01:51]} Rce8 {[%emt 0:00:07]} 18. Re2 {[%emt 0:00:35]} g6 {[%emt 0:00:20]} 19. Rae1 {[%emt 0:00:15]} Ne4 {[%emt 0:00:12]} 20. Nh1 {[%emt 0:00:56]} f5 {[%emt 0:00:17]} 21. f3 {[%emt 0:00:06]} Nf6 {[%emt 0:00:16]} 22. Nf2 {[%emt 0:00:07]} Nc7 {[%emt 0:00:02]} 23. Nh3 {[%emt 0:00:41]} Rc6 {[%emt 0:00:16]} 24. Nf2 {[%emt 0:01:06]} Kg7 {[%emt 0:00:25]} 25. h3 {[%emt 0:00:08]} Rce6 {[%emt 0:00:09]} 26. e4 {[%emt 0:00:54]} fxe4 {[%emt 0:00:27]} 27. fxe4 {[%emt 0:00:06]} Nxe4 {[%emt 0:00:07]} 28. Nxe4 {[%emt 0:00:05]} Rxe4 {[%emt 0:00:06]} 29. Rxe4 {[%emt 0:00:03]} dxe4 {[%emt 0:00:08]} 30. Rxe4 {[%emt 0:00:03]} Qf5 {[%emt 0:00:35]} 31. Re2 {[%emt 0:00:16]} Qxc2 {[%emt 0:00:04]} 32. Rxc2 {[%emt 0:00:03]} Nd5 {[%emt 0:00:02]} 33. Bc1 {[%emt 0:00:18]} h6 {[%emt 0:01:28]} 34. Kf2 {[%emt 0:00:08]} Kf6 {[%emt 0:00:23]} 35. Bxh6 {[%emt 0:00:37]} g5 {[%emt 0:00:03]} 36. h4 {[%emt 0:00:03]} gxh4 {[%emt 0:00:02]} 37. Kf3 {[%emt 0:00:11]} Kf5 {[%emt 0:00:06]} 38. Bd2 {[%emt 0:01:10]} Rg8 {[%emt 0:00:18]} 39. Be1 {[%emt 0:00:02]} Rg4 {[%emt 0:00:05]} 40. Re2 {[%emt 0:00:04]} Rf4# {[%emt 0:00:03]} 0-1

[Event "European Online Club-ch-F 2021"]
[Site "Online"]
[Date "2021.03.27"]
[Round "8.17"]
[White "Pechac, Jergus"]
[Black "Gokerkan, Cem Kaan"]
[Result "0-1"]
[ECO "E43"]
[WhiteElo "2507"]
[BlackElo "2470"]
[Annotator "ChessBase"]
[PlyCount "54"]
[EventDate "2021.03.27"]
[EventType "team-tourn"]
[EventCountry "NET"]
[SourceTitle "playchess.com"]
[Source "ChessBase"]
[SourceQuality "1"]
[TimeControl "900+5"]

1. d4 {[%emt 0:00:00]} Nf6 {[%emt 0:00:09]} 2. c4 {[%emt 0:00:03]} e6 {[%emt 0:00:02]} 3. Nc3 {[%emt 0:00:01]} Bb4 {[%emt 0:00:05]} 4. Nf3 {[%emt 0:00:02]} b6 {[%emt 0:00:07]} 5. e3 {[%emt 0:00:02]} Bb7 {[%emt 0:00:06]} 6. Bd3 {[%emt 0:00:02]} O-O {[%emt 0:00:23]} 7. O-O {[%emt 0:00:04]} Bxc3 {[%emt 0:00:23]} 8. bxc3 {[%emt 0:00:04]} d6 {[%emt 0:00:00]} 9. Nd2 {[%emt 0:00:24]} e5 {[%emt 0:00:34]} 10. e4 {[%emt 0:01:00]} Nc6 {[%emt 0:00:23]} 11. Bb2 {[%emt 0:00:45]} Re8 {[%emt 0:00:08]} 12. a3 {[%emt 0:04:04]} Ne7 {[%emt 0:01:02]} 13. Re1 {[%emt 0:01:02]} Ng6 {[%emt 0:00:10]} 14. Bc2 {[%emt 0:01:41]} Qd7 {[%emt 0:00:59]} 15. f3 {[%emt 0:00:14]} Nh5 {[%emt 0:00:16]} 16. Nf1 {[%emt 0:00:05]} Qd8 {[%emt 0:01:43]} 17. a4 {[%emt 0:01:45]} a5 {[%emt 0:01:19]} 18. c5 {[%emt 0:00:22]} dxc5 {[%emt 0:00:20]} 19. dxc5 {[%emt 0:00:00]} Qg5 {[%emt 0:00:04]} 20. Bc1 {[%emt 0:02:44]} Nhf4 {[%emt 0:00:56]} 21. Bxf4 {[%emt 0:00:11]} Nxf4 {[%emt 0:00:03]} 22. g3 {[%emt 0:00:06]} Rad8 {[%emt 0:02:31]} 23. Qb1 {[%emt 0:00:08]} Ba6 {[%emt 0:00:17]} 24. cxb6 {[%emt 0:00:31]} cxb6 {[%emt 0:01:23]} 25. Qxb6 {[%emt 0:00:40]} Bxf1 {[%emt 0:00:23]} 26. Rxf1 {[%emt 0:00:40]} Rd2 {[%emt 0:00:04]} 27. Bb3 {[%emt 0:00:19]} Ne2+ {[%emt 0:01:00]} 0-1

[Event "European Online Club-ch-F 2021"]
[Site "Online"]
[Date "2021.03.27"]
[Round "8.18"]
[White "Ozen, Deniz"]
[Black "Zwardon, Vojtech"]
[Result "1-0"]
[ECO "B31"]
[WhiteElo "2397"]
[BlackElo "2466"]
[Annotator "ChessBase"]
[PlyCount "80"]
[EventDate "2021.03.27"]
[EventType "team-tourn"]
[EventCountry "NET"]
[SourceTitle "playchess.com"]
[Source "ChessBase"]
[SourceQuality "1"]
[TimeControl "900+5"]

1. e4 {[%emt 0:00:00]} c5 {[%emt 0:00:02]} 2. Nf3 {[%emt 0:00:02]} Nc6 {[%emt 0:00:01]} 3. Bb5 {[%emt 0:00:01]} g6 {[%emt 0:00:01]} 4. Bxc6 {[%emt 0:00:01]} dxc6 {[%emt 0:00:00]} 5. h3 {[%emt 0:00:02]} Bg7 {[%emt 0:00:01]} 6. d3 {[%emt 0:00:01]} Nf6 {[%emt 0:00:01]} 7. Nc3 {[%emt 0:00:08]} O-O {[%emt 0:00:02]} 8. Be3 {[%emt 0:00:02]} b6 {[%emt 0:00:03]} 9. Qd2 {[%emt 0:00:04]} e5 {[%emt 0:00:02]} 10. Bh6 {[%emt 0:00:06]} Qd6 {[%emt 0:00:02]} 11. Bxg7 {[%emt 0:00:11]} Kxg7 {[%emt 0:00:00]} 12. O-O {[%emt 0:00:06]} Nh5 {[%emt 0:00:04]} 13. Rfe1 {[%emt 0:00:11]} f6 {[%emt 0:00:04]} 14. a3 {[%emt 0:00:08]} Rd8 {[%emt 0:00:18]} 15. Qe3 {[%emt 0:00:18]} Nf4 {[%emt 0:00:12]} 16. Ne2 {[%emt 0:00:10]} Ne6 {[%emt 0:00:05]} 17. b4 {[%emt 0:00:43]} cxb4 {[%emt 0:01:11]} 18. axb4 {[%emt 0:00:03]} Qxb4 {[%emt 0:00:00]} 19. Reb1 {[%emt 0:00:03]} Qc5 {[%emt 0:00:01]} 20. Qxc5 {[%emt 0:00:04]} bxc5 {[%emt 0:00:02]} 21. Nd2 {[%emt 0:00:56]} Kh6 {[%emt 0:01:19]} 22. Ra5 {[%emt 0:00:25]} Nd4 {[%emt 0:00:07]} 23. Nxd4 {[%emt 0:00:14]} cxd4 {[%emt 0:00:00]} 24. Rba1 {[%emt 0:00:14]} a6 {[%emt 0:00:02]} 25. Rc5 {[%emt 0:00:40]} Bd7 {[%emt 0:00:03]} 26. Rca5 {[%emt 0:00:21]} Rdb8 {[%emt 0:00:03]} 27. Nb3 {[%emt 0:00:58]} Rb6 {[%emt 0:00:10]} 28. f4 {[%emt 0:00:18]} exf4 {[%emt 0:00:45]} 29. Nxd4 {[%emt 0:00:08]} g5 {[%emt 0:00:08]} 30. R1a2 {[%emt 0:01:50]} Kg6 {[%emt 0:01:14]} 31. e5 {[%emt 0:02:03]} fxe5 {[%emt 0:01:53]} 32. Nf3 {[%emt 0:00:03]} Be6 {[%emt 0:00:13]} 33. c4 {[%emt 0:00:51]} Kf6 {[%emt 0:00:31]} 34. Rxe5 {[%emt 0:00:24]} Bf5 {[%emt 0:00:17]} 35. Raa5 {[%emt 0:00:54]} Bxd3 {[%emt 0:00:22]} 36. Rxg5 {[%emt 0:00:19]} Rb1+ {[%emt 0:00:25]} 37. Kh2 {[%emt 0:00:04]} Bxc4 {[%emt 0:00:11]} 38. Raf5+ {[%emt 0:00:25]} Ke7 {[%emt 0:00:05]} 39. Nd2 {[%emt 0:00:13]} Rc1 {[%emt 0:00:22]} 40. Rc5 {[%emt 0:00:07]} h5 {[%emt 0:03:12]} 1-0